[Event "*** Titled Tuesday 3|2 Blitz"]
[Site "Chess.com"]
[Date "2016.10.04"]
[Round "4"]
[White "Scott-fox21"]
[Black "NoWuss2"]
[Result "0-1"]
[WhiteElo "2161"]
[BlackElo "2080"]
[TimeControl "180+2"]
[EndTime "11:47:24 PDT"]
[Termination "NoWuss2 won by checkmate"]

1. d4 {[%clk 0:03:02]} 1... Nc6 {[%clk 0:03:00.8]} 2. Nf3 {[%clk 0:03:02.2]}
2... d6 {[%clk 0:03:02]} 3. c4 {[%clk 0:03:02.8]} 3... f5 {[%clk 0:03:02.5]} 4.
g3 {[%clk 0:03:02.2]} 4... g6 {[%clk 0:03:03.1]} 5. Bg2 {[%clk 0:03:03.3]} 5...
Bg7 {[%clk 0:03:04.5]} 6. O-O {[%clk 0:03:04.5]} 6... Nf6 {[%clk 0:03:05.7]} 7.
Nc3 {[%clk 0:03:05.3]} 7... O-O {[%clk 0:03:06.8]} 8. Bf4 {[%clk 0:03:00.4]}
8... Nh5 {[%clk 0:03:02.6]} 9. Bg5 {[%clk 0:02:56]} 9... h6 {[%clk 0:02:59.1]}
10. Be3 {[%clk 0:02:55.7]} 10... f4 {[%clk 0:02:41.7]} 11. gxf4 {[%clk
0:02:47.1]} 11... Nxf4 {[%clk 0:02:42.5]} 12. Bxf4 {[%clk 0:02:48.3]} 12... Rxf4
{[%clk 0:02:43.3]} 13. e3 {[%clk 0:02:39.4]} 13... Rf7 {[%clk 0:02:31.2]} 14.
Qd3 {[%clk 0:02:17.1]} 14... Bf5 {[%clk 0:02:08.2]} 15. Qd2 {[%clk 0:02:12.3]}
15... g5 {[%clk 0:01:47.3]} 16. b4 {[%clk 0:01:45.5]} 16... Qf8 {[%clk
0:01:47.6]} 17. b5 {[%clk 0:01:42.5]} 17... Nd8 {[%clk 0:01:37.9]} 18. h3 {[%clk
0:01:14]} 18... Bxh3 {[%clk 0:01:06.4]} 19. Nxg5 {[%clk 0:01:14.8]} 19... Bxg2
{[%clk 0:01:02]} 20. Nxf7 {[%clk 0:01:07.7]} 20... Bxf1 {[%clk 0:00:54.1]} 21.
Nxd8 {[%clk 0:01:05.7]} 21... Bh3 {[%clk 0:00:52.1]} 22. Kh2 {[%clk 0:00:51.6]}
22... Qf3 {[%clk 0:00:42.1]} 23. Rg1 {[%clk 0:00:52]} 23... Bd7 {[%clk
0:00:42.2]} 24. Nxb7 {[%clk 0:00:35.4]} 24... Qh3# {[%clk 0:00:41.4]} 0-1

[Event "*** Titled Tuesday 3|2 Blitz"]
[Site "Chess.com"]
[Date "2016.10.04"]
[Round "4"]
[White "Kouzari"]
[Black "filali-oujda"]
[Result "0-1"]
[WhiteElo "2433"]
[BlackElo "2316"]
[TimeControl "180+2"]
[EndTime "11:47:58 PDT"]
[Termination "filali-oujda won on time"]

1. e4 {[%clk 0:02:55.1]} 1... c6 {[%clk 0:02:57.8]} 2. d4 {[%clk 0:02:20.6]}
2... d5 {[%clk 0:02:56.5]} 3. exd5 {[%clk 0:01:39.8]} 3... cxd5 {[%clk
0:02:56.1]} 4. c4 {[%clk 0:01:41.7]} 4... Nf6 {[%clk 0:02:56.1]} 5. Nc3 {[%clk
0:01:43.6]} 5... Nc6 {[%clk 0:02:56.6]} 6. Bg5 {[%clk 0:01:40.8]} 6... e6 {[%clk
0:02:54.8]} 7. cxd5 {[%clk 0:01:32.7]} 7... exd5 {[%clk 0:02:52.7]} 8. Bxf6
{[%clk 0:01:34.3]} 8... gxf6 {[%clk 0:02:50.5]} 9. Nf3 {[%clk 0:01:34.6]} 9...
Be6 {[%clk 0:02:48.5]} 10. Bb5 {[%clk 0:01:24.6]} 10... Qb6 {[%clk 0:02:47.7]}
11. Qa4 {[%clk 0:01:22.9]} 11... Bd6 {[%clk 0:02:40.7]} 12. O-O {[%clk
0:01:14.9]} 12... O-O {[%clk 0:02:40.2]} 13. Rfe1 {[%clk 0:01:14.9]} 13... Kh8
{[%clk 0:02:33.8]} 14. Rac1 {[%clk 0:01:10.2]} 14... Rac8 {[%clk 0:02:32]} 15.
b3 {[%clk 0:01:09.3]} 15... Rg8 {[%clk 0:02:21.4]} 16. g3 {[%clk 0:00:57.1]}
16... Rg4 {[%clk 0:02:17.8]} 17. Ne2 {[%clk 0:00:44.3]} 17... a6 {[%clk
0:02:04.5]} 18. Bxc6 {[%clk 0:00:38.6]} 18... bxc6 {[%clk 0:02:06.4]} 19. Rc2
{[%clk 0:00:36.3]} 19... c5 {[%clk 0:02:02.4]} 20. Rec1 {[%clk 0:00:35.9]} 20...
c4 {[%clk 0:02:02.7]} 21. bxc4 {[%clk 0:00:32]} 21... dxc4 {[%clk 0:02:03.7]}
22. Nc3 {[%clk 0:00:26.1]} 22... Qb7 {[%clk 0:01:56.1]} 23. d5 {[%clk
0:00:23.7]} 23... Bf5 {[%clk 0:01:52.5]} 24. Re2 {[%clk 0:00:21]} 24... Bd7
{[%clk 0:01:53.5]} 25. Qc2 {[%clk 0:00:13.4]} 25... Bc5 {[%clk 0:01:45.9]} 26.
Rce1 {[%clk 0:00:14.3]} 26... Qb6 {[%clk 0:01:43.7]} 27. Qd2 {[%clk 0:00:14.9]}
27... Rcg8 {[%clk 0:01:31.3]} 28. Ne4 {[%clk 0:00:16]} 28... Bb4 {[%clk
0:01:30.8]} 29. Qh6 {[%clk 0:00:15.9]} 29... R4g6 {[%clk 0:01:30.5]} 30. Qh5
{[%clk 0:00:12]} 30... Bg4 {[%clk 0:01:30.8]} 0-1

[Event "*** Titled Tuesday 3|2 Blitz"]
[Site "Chess.com"]
[Date "2016.10.04"]
[Round "4"]
[White "pastouche06"]
[Black "agser"]
[Result "1-0"]
[WhiteElo "2349"]
[BlackElo "2485"]
[TimeControl "180+2"]
[EndTime "11:48:15 PDT"]
[Termination "pastouche06 won by resignation"]

1. d4 {[%clk 0:03:01.9]} 1... Nf6 {[%clk 0:03:00.6]} 2. c4 {[%clk 0:03:00.8]}
2... e6 {[%clk 0:03:01.8]} 3. Nc3 {[%clk 0:03:01]} 3... Bb4 {[%clk 0:03:02.1]}
4. Qc2 {[%clk 0:03:01.9]} 4... O-O {[%clk 0:03:00.7]} 5. a3 {[%clk 0:02:58.6]}
5... Bxc3+ {[%clk 0:03:01.1]} 6. Qxc3 {[%clk 0:03:00.5]} 6... b6 {[%clk
0:03:01.2]} 7. Bg5 {[%clk 0:03:00.9]} 7... Ba6 {[%clk 0:03:00.8]} 8. Qf3 {[%clk
0:02:52]} 8... Nc6 {[%clk 0:02:59.4]} 9. e3 {[%clk 0:02:52.7]} 9... Na5 {[%clk
0:02:49.9]} 10. Rc1 {[%clk 0:02:52.3]} 10... c5 {[%clk 0:02:43.7]} 11. d5 {[%clk
0:02:37]} 11... exd5 {[%clk 0:02:44.5]} 12. Bxf6 {[%clk 0:02:36.6]} 12... Qxf6
{[%clk 0:02:35.8]} 13. Qxf6 {[%clk 0:02:36.6]} 13... gxf6 {[%clk 0:02:37.7]} 14.
cxd5 {[%clk 0:02:38]} 14... Bxf1 {[%clk 0:02:11.4]} 15. Kxf1 {[%clk 0:02:39.9]}
15... c4 {[%clk 0:02:00.1]} 16. Nf3 {[%clk 0:02:35.4]} 16... Rac8 {[%clk
0:01:48.8]} 17. Ke2 {[%clk 0:02:34.3]} 17... Rc5 {[%clk 0:01:41.2]} 18. Rhd1
{[%clk 0:02:32.3]} 18... b5 {[%clk 0:01:39.3]} 19. b4 {[%clk 0:02:24.9]} 19...
Nb3 {[%clk 0:01:10.1]} 20. bxc5 {[%clk 0:02:24.5]} 20... Nxc1+ {[%clk
0:01:11.6]} 21. Rxc1 {[%clk 0:02:25.1]} 21... Rc8 {[%clk 0:01:13.5]} 22. c6
{[%clk 0:02:16.2]} 22... dxc6 {[%clk 0:01:14.1]} 23. dxc6 {[%clk 0:02:18.1]}
23... Rxc6 {[%clk 0:01:13.9]} 24. Nd4 {[%clk 0:02:18.7]} 24... Rc5 {[%clk
0:01:12.6]} 25. Kd2 {[%clk 0:02:13.8]} 25... a6 {[%clk 0:01:00.8]} 26. Kc3
{[%clk 0:02:13.2]} 26... f5 {[%clk 0:00:57.1]} 27. g3 {[%clk 0:02:12.3]} 27...
Kg7 {[%clk 0:00:57.7]} 28. Ra1 {[%clk 0:02:07.1]} 28... Kg6 {[%clk 0:00:53.2]}
29. a4 {[%clk 0:02:06.8]} 29... Kg5 {[%clk 0:00:37.4]} 30. h3 {[%clk 0:02:04.4]}
30... h5 {[%clk 0:00:20.9]} 31. axb5 {[%clk 0:02:04.1]} 31... axb5 {[%clk
0:00:22.8]} 32. Rb1 {[%clk 0:02:05.5]} 32... h4 {[%clk 0:00:22.9]} 33. Nf3+
{[%clk 0:02:04.9]} 33... Kf6 {[%clk 0:00:20.9]} 34. Nxh4 {[%clk 0:02:05.1]}
34... Rd5 {[%clk 0:00:14.5]} 35. Nf3 {[%clk 0:02:06.1]} 35... Rd3+ {[%clk
0:00:14.5]} 36. Kc2 {[%clk 0:02:07.4]} 36... f4 {[%clk 0:00:12]} 37. gxf4 {[%clk
0:02:06.1]} 37... Ra3 {[%clk 0:00:09.2]} 38. Rxb5 {[%clk 0:02:04.9]} 38... Ra1
{[%clk 0:00:09.7]} 39. Nd4 {[%clk 0:02:03.1]} 39... Rf1 {[%clk 0:00:08.9]} 40.
f3 {[%clk 0:02:03.5]} 40... Re1 {[%clk 0:00:07.9]} 41. e4 {[%clk 0:02:03.6]}
41... Rh1 {[%clk 0:00:07.4]} 42. Kc3 {[%clk 0:02:03.6]} 42... Rc1+ {[%clk
0:00:08.5]} 43. Kd2 {[%clk 0:02:01.3]} 43... Rh1 {[%clk 0:00:10.2]} 44. Rc5
{[%clk 0:02:00.4]} 1-0

[Event "*** Titled Tuesday 3|2 Blitz"]
[Site "Chess.com"]
[Date "2016.10.04"]
[Round "4"]
[White "Mugzyyy"]
[Black "BellJackson95"]
[Result "1-0"]
[WhiteElo "2463"]
[BlackElo "2320"]
[TimeControl "180+2"]
[EndTime "11:48:25 PDT"]
[Termination "Mugzyyy won by resignation"]

1. d4 {[%clk 0:03:01.9]} 1... Nf6 {[%clk 0:03:00.1]} 2. h3 {[%clk 0:03:02.1]}
2... c5 {[%clk 0:03:00.5]} 3. dxc5 {[%clk 0:03:02.3]} 3... e5 {[%clk 0:02:59.5]}
4. Be3 {[%clk 0:03:01.7]} 4... Na6 {[%clk 0:02:59.8]} 5. Nf3 {[%clk 0:02:58.9]}
5... e4 {[%clk 0:02:54.6]} 6. Nd4 {[%clk 0:02:57.1]} 6... Bxc5 {[%clk
0:02:54.2]} 7. Nc3 {[%clk 0:02:55]} 7... O-O {[%clk 0:02:53]} 8. g4 {[%clk
0:02:55.7]} 8... Re8 {[%clk 0:02:45.4]} 9. Bg2 {[%clk 0:02:56.5]} 9... Bb4
{[%clk 0:02:42.9]} 10. O-O {[%clk 0:02:54.3]} 10... Bxc3 {[%clk 0:02:40.3]} 11.
bxc3 {[%clk 0:02:54.8]} 11... Nd5 {[%clk 0:02:41.3]} 12. c4 {[%clk 0:02:52.2]}
12... Nxe3 {[%clk 0:02:36.4]} 13. fxe3 {[%clk 0:02:53.4]} 13... Qg5 {[%clk
0:02:30.4]} 14. Rf4 {[%clk 0:02:51.4]} 14... d5 {[%clk 0:02:20.2]} 15. Qf1
{[%clk 0:02:43.4]} 15... h5 {[%clk 0:02:12.8]} 16. Nf5 {[%clk 0:02:31.2]} 16...
Bxf5 {[%clk 0:01:46.7]} 17. Rxf5 {[%clk 0:02:30.6]} 17... Qxe3+ {[%clk
0:01:46.7]} 18. Kh1 {[%clk 0:02:29.1]} 18... hxg4 {[%clk 0:01:44.4]} 19. cxd5
{[%clk 0:02:29.9]} 19... gxh3 {[%clk 0:01:37]} 20. Bxh3 {[%clk 0:02:27.4]} 20...
Nb4 {[%clk 0:01:31.5]} 21. Qg2 {[%clk 0:02:27.5]} 21... Rad8 {[%clk 0:01:11.7]}
22. Rg1 {[%clk 0:02:22]} 22... Qh6 {[%clk 0:01:11.7]} 23. c4 {[%clk 0:02:17.5]}
23... g6 {[%clk 0:01:01.8]} 24. Rf6 {[%clk 0:02:14.5]} 24... Re5 {[%clk
0:00:48]} 25. Kh2 {[%clk 0:01:58]} 25... Nc2 {[%clk 0:00:45.2]} 26. Qf2 {[%clk
0:01:49.4]} 26... Rh5 {[%clk 0:00:42.7]} 27. Rg3 {[%clk 0:01:50.2]} 27... e3
{[%clk 0:00:40.6]} 28. Qf3 {[%clk 0:01:37.7]} 28... Ne1 {[%clk 0:00:40]} 29.
Qxe3 {[%clk 0:01:36]} 29... Qxe3 {[%clk 0:00:35.9]} 30. Rxe3 {[%clk 0:01:36.6]}
30... Kg7 {[%clk 0:00:30.6]} 31. Rf4 {[%clk 0:01:33.6]} 31... b5 {[%clk
0:00:30.3]} 32. Re7 {[%clk 0:01:30.3]} 32... Rf8 {[%clk 0:00:27.6]} 33. d6
{[%clk 0:01:26.8]} 33... bxc4 {[%clk 0:00:24.4]} 34. d7 {[%clk 0:01:28.1]} 34...
Rd5 {[%clk 0:00:22.5]} 35. Be6 {[%clk 0:01:29.2]} 35... Rh5+ {[%clk 0:00:18.9]}
36. Kg3 {[%clk 0:01:27.2]} 36... Rg5+ {[%clk 0:00:18.4]} 37. Kf2 {[%clk
0:01:28.2]} 37... Ng2 {[%clk 0:00:17.2]} 38. Rfxf7+ {[%clk 0:01:29]} 38... Rxf7+
{[%clk 0:00:08.9]} 39. Rxf7+ {[%clk 0:01:30.2]} 1-0

[Event "*** Titled Tuesday 3|2 Blitz"]
[Site "Chess.com"]
[Date "2016.10.04"]
[Round "4"]
[White "cstefan"]
[Black "Lali-Rustavi"]
[Result "1-0"]
[WhiteElo "2003"]
[BlackElo "1819"]
[TimeControl "180+2"]
[EndTime "11:48:26 PDT"]
[Termination "cstefan won by resignation"]

1. e4 {[%clk 0:03:01.9]} 1... c5 {[%clk 0:02:59.5]} 2. Nf3 {[%clk 0:03:02.4]}
2... Nc6 {[%clk 0:03:00]} 3. Nc3 {[%clk 0:03:02.7]} 3... g6 {[%clk 0:02:57.1]}
4. Bb5 {[%clk 0:03:03.4]} 4... Bg7 {[%clk 0:02:57.2]} 5. Bxc6 {[%clk 0:03:04.9]}
5... dxc6 {[%clk 0:02:51.9]} 6. h3 {[%clk 0:03:05.7]} 6... e5 {[%clk 0:02:40.5]}
7. d3 {[%clk 0:03:06.7]} 7... Ne7 {[%clk 0:02:41.1]} 8. Be3 {[%clk 0:03:01.7]}
8... b6 {[%clk 0:02:40.8]} 9. Qd2 {[%clk 0:03:01.3]} 9... O-O {[%clk 0:02:23.5]}
10. O-O {[%clk 0:03:00.3]} 10... f5 {[%clk 0:02:23.9]} 11. exf5 {[%clk
0:03:00.3]} 11... Nxf5 {[%clk 0:02:23.2]} 12. Bg5 {[%clk 0:03:00.8]} 12... Qc7
{[%clk 0:02:21.4]} 13. Rfe1 {[%clk 0:02:58.2]} 13... Nd4 {[%clk 0:02:21.8]} 14.
Nh2 {[%clk 0:02:54.6]} 14... Bf5 {[%clk 0:02:19.3]} 15. Ne4 {[%clk 0:02:54.7]}
15... Rad8 {[%clk 0:02:17.1]} 16. Bxd8 {[%clk 0:02:50.9]} 16... Rxd8 {[%clk
0:02:16.9]} 17. Rad1 {[%clk 0:02:48.5]} 17... Qd7 {[%clk 0:01:57.5]} 18. c3
{[%clk 0:02:47.6]} 18... Ne6 {[%clk 0:01:55.5]} 19. Qe3 {[%clk 0:02:45.9]} 19...
Nf4 {[%clk 0:01:51.5]} 20. Rd2 {[%clk 0:02:29.4]} 20... Nxd3 {[%clk 0:01:09.2]}
21. Red1 {[%clk 0:02:21.3]} 21... c4 {[%clk 0:01:10.2]} 22. b3 {[%clk
0:02:18.9]} 22... b5 {[%clk 0:00:59.3]} 23. bxc4 {[%clk 0:02:05.5]} 23... bxc4
{[%clk 0:01:00]} 24. Nf1 {[%clk 0:02:03.7]} 24... Qf7 {[%clk 0:00:59.8]} 25.
Nfg3 {[%clk 0:02:04]} 25... Bxe4 {[%clk 0:00:46.7]} 26. Nxe4 {[%clk 0:02:05.9]}
26... Rf8 {[%clk 0:00:41.1]} 27. Rf1 {[%clk 0:01:55.9]} 27... Qf5 {[%clk
0:00:27.4]} 28. Nd6 {[%clk 0:01:44.8]} 28... Qh5 {[%clk 0:00:28.1]} 29. Nxc4
{[%clk 0:01:44.5]} 29... Nf4 {[%clk 0:00:24.6]} 30. Re1 {[%clk 0:01:30.2]} 30...
Qg5 {[%clk 0:00:23.8]} 31. Qg3 {[%clk 0:01:27.3]} 31... Qf5 {[%clk 0:00:24]} 32.
Nd6 {[%clk 0:01:26.6]} 32... Qh5 {[%clk 0:00:22.7]} 33. Ne4 {[%clk 0:01:25.2]}
33... Bh6 {[%clk 0:00:22.2]} 34. Rb2 {[%clk 0:01:24.1]} 34... a5 {[%clk
0:00:20.1]} 35. Kf1 {[%clk 0:01:18]} 35... a4 {[%clk 0:00:20.9]} 36. Rb8 {[%clk
0:01:18.4]} 36... Rxb8 {[%clk 0:00:20.7]} 37. Nf6+ {[%clk 0:01:19]} 37... Kg7
{[%clk 0:00:21.4]} 38. Nxh5+ {[%clk 0:01:20.9]} 38... Nxh5 {[%clk 0:00:22.9]}
39. Qxe5+ {[%clk 0:01:22]} 39... Kg8 {[%clk 0:00:23.7]} 40. Qxb8+ {[%clk
0:01:23.9]} 1-0

[Event "*** Titled Tuesday 3|2 Blitz"]
[Site "Chess.com"]
[Date "2016.10.04"]
[Round "4"]
[White "QuintilianoR"]
[Black "Dr-Bassem"]
[Result "0-1"]
[WhiteElo "2416"]
[BlackElo "2613"]
[TimeControl "180+2"]
[EndTime "11:48:28 PDT"]
[Termination "Dr-Bassem won by resignation"]

1. Nf3 {[%clk 0:03:01.9]} 1... f5 {[%clk 0:02:52.6]} 2. c4 {[%clk 0:03:02.2]}
2... Nf6 {[%clk 0:02:53.8]} 3. g3 {[%clk 0:03:03.5]} 3... d6 {[%clk 0:02:53.5]}
4. d4 {[%clk 0:03:03.7]} 4... e6 {[%clk 0:02:54.9]} 5. Bg2 {[%clk 0:03:04.8]}
5... Be7 {[%clk 0:02:56.6]} 6. O-O {[%clk 0:03:06.4]} 6... O-O {[%clk
0:02:58.2]} 7. Nc3 {[%clk 0:03:07.8]} 7... Qe8 {[%clk 0:03:00.1]} 8. Re1 {[%clk
0:03:04.7]} 8... Ne4 {[%clk 0:03:00]} 9. Qc2 {[%clk 0:03:01.8]} 9... Qg6 {[%clk
0:02:59.2]} 10. Nd2 {[%clk 0:02:38.3]} 10... Nxc3 {[%clk 0:02:58.2]} 11. bxc3
{[%clk 0:02:38.9]} 11... e5 {[%clk 0:02:59]} 12. c5 {[%clk 0:02:34.8]} 12... Nc6
{[%clk 0:02:59.2]} 13. cxd6 {[%clk 0:02:33.2]} 13... cxd6 {[%clk 0:03:01.1]} 14.
Ba3 {[%clk 0:02:31.5]} 14... e4 {[%clk 0:02:50.7]} 15. Rab1 {[%clk 0:02:27.8]}
15... b6 {[%clk 0:02:43.2]} 16. f3 {[%clk 0:02:20.9]} 16... d5 {[%clk
0:02:43.3]} 17. Bxe7 {[%clk 0:02:19.1]} 17... Nxe7 {[%clk 0:02:45.2]} 18. f4
{[%clk 0:02:06.5]} 18... Qc6 {[%clk 0:02:35.2]} 19. Bf1 {[%clk 0:01:56.6]} 19...
Ba6 {[%clk 0:02:34.1]} 20. Qb3 {[%clk 0:01:49.9]} 20... Nc8 {[%clk 0:02:12.9]}
21. Qa3 {[%clk 0:01:45.5]} 21... Bb5 {[%clk 0:02:04.9]} 22. Rxb5 {[%clk
0:01:09.5]} 22... Qxb5 {[%clk 0:02:04.3]} 23. e3 {[%clk 0:01:10.6]} 23... Qc6
{[%clk 0:02:01.1]} 24. c4 {[%clk 0:01:10.8]} 24... Nd6 {[%clk 0:01:59.7]} 25. c5
{[%clk 0:01:08.8]} 25... Nb7 {[%clk 0:01:54]} 26. Qa6 {[%clk 0:01:07.9]} 26...
Rf6 {[%clk 0:01:44]} 27. Bb5 {[%clk 0:01:07.6]} 27... Qc7 {[%clk 0:01:45]} 28.
c6 {[%clk 0:00:43.3]} 28... Na5 {[%clk 0:01:45.8]} 29. Rc1 {[%clk 0:00:41.1]}
29... Rc8 {[%clk 0:01:35.6]} 30. Nb1 {[%clk 0:00:30.2]} 30... Nxc6 {[%clk
0:00:58.8]} 31. Nc3 {[%clk 0:00:29]} 31... Nb4 {[%clk 0:00:52.5]} 32. Qa4 {[%clk
0:00:29.3]} 32... Nd3 {[%clk 0:00:51.9]} 33. Bxd3 {[%clk 0:00:28.8]} 33... exd3
{[%clk 0:00:53.8]} 0-1

[Event "*** Titled Tuesday 3|2 Blitz"]
[Site "Chess.com"]
[Date "2016.10.04"]
[Round "4"]
[White "Er_is_geen_hoop_meer"]
[Black "kikydu96"]
[Result "1/2-1/2"]
[WhiteElo "2283"]
[BlackElo "2300"]
[TimeControl "180+2"]
[EndTime "11:48:29 PDT"]
[Termination "Game drawn - insufficient material"]

1. Nf3 {[%clk 0:03:02]} 1... Nf6 {[%clk 0:03:00.5]} 2. g3 {[%clk 0:03:03.9]}
2... d5 {[%clk 0:03:01.1]} 3. Bg2 {[%clk 0:03:05.8]} 3... Bf5 {[%clk 0:03:02.3]}
4. O-O {[%clk 0:03:07.7]} 4... c6 {[%clk 0:03:02.9]} 5. c4 {[%clk 0:03:06.4]}
5... e6 {[%clk 0:03:03.5]} 6. cxd5 {[%clk 0:03:05.6]} 6... exd5 {[%clk
0:03:03.2]} 7. Nd4 {[%clk 0:03:05.6]} 7... Be4 {[%clk 0:02:59.3]} 8. f3 {[%clk
0:03:06]} 8... Bg6 {[%clk 0:03:00.3]} 9. Qb3 {[%clk 0:03:03]} 9... Qb6 {[%clk
0:02:57.8]} 10. Qxb6 {[%clk 0:03:03]} 10... axb6 {[%clk 0:02:59.7]} 11. e3
{[%clk 0:03:04.2]} 11... Bxb1 {[%clk 0:02:55.2]} 12. Rxb1 {[%clk 0:03:05.1]}
12... Rxa2 {[%clk 0:02:56.8]} 13. b4 {[%clk 0:03:02.5]} 13... Nbd7 {[%clk
0:02:53.2]} 14. g4 {[%clk 0:02:56.3]} 14... g6 {[%clk 0:02:48.4]} 15. g5 {[%clk
0:02:57]} 15... Nh5 {[%clk 0:02:47.4]} 16. f4 {[%clk 0:02:58.5]} 16... Bg7
{[%clk 0:02:44.5]} 17. Bb2 {[%clk 0:02:54.3]} 17... c5 {[%clk 0:02:45.4]} 18.
bxc5 {[%clk 0:02:46]} 18... bxc5 {[%clk 0:02:46.2]} 19. Bxd5 {[%clk 0:02:47.6]}
19... Rxb2 {[%clk 0:02:43.3]} 20. Rxb2 {[%clk 0:02:49.5]} 20... cxd4 {[%clk
0:02:44.3]} 21. Rxb7 {[%clk 0:02:46.1]} 21... Nc5 {[%clk 0:02:08.5]} 22. Rxf7
{[%clk 0:02:39.6]} 22... dxe3 {[%clk 0:02:01.1]} 23. Rb1 {[%clk 0:02:39.4]}
23... Nd7 {[%clk 0:01:55.4]} 24. dxe3 {[%clk 0:02:39.8]} 24... Rf8 {[%clk
0:01:53.8]} 25. Rxf8+ {[%clk 0:02:36.2]} 25... Nxf8 {[%clk 0:01:50.6]} 26. Kf2
{[%clk 0:02:29.5]} 26... Bc3 {[%clk 0:01:48.9]} 27. Rb8+ {[%clk 0:02:23.4]}
27... Ke7 {[%clk 0:01:49.2]} 28. Rb7+ {[%clk 0:02:24.1]} 28... Ke8 {[%clk
0:01:50]} 29. Kf3 {[%clk 0:02:14.5]} 29... Ng7 {[%clk 0:01:49.3]} 30. e4 {[%clk
0:02:13]} 30... Bd4 {[%clk 0:01:44.4]} 31. Bf7+ {[%clk 0:02:02.2]} 31... Kd8
{[%clk 0:01:43.9]} 32. Bg8 {[%clk 0:02:04.1]} 32... Ba1 {[%clk 0:01:27.7]} 33.
h4 {[%clk 0:02:03.2]} 33... Bc3 {[%clk 0:01:23.5]} 34. Rf7 {[%clk 0:01:54.2]}
34... Ke8 {[%clk 0:01:20.1]} 35. f5 {[%clk 0:01:54.5]} 35... gxf5 {[%clk
0:01:03.3]} 36. exf5 {[%clk 0:01:56.4]} 36... Nd7 {[%clk 0:01:04.4]} 37. f6
{[%clk 0:01:49.7]} 37... Ne5+ {[%clk 0:00:59.1]} 38. Ke4 {[%clk 0:01:20.6]}
38... Nxf7 {[%clk 0:00:58.2]} 39. fxg7 {[%clk 0:00:51.2]} 39... Bxg7 {[%clk
0:00:55.1]} 40. Bxh7 {[%clk 0:00:52.3]} 40... Nxg5+ {[%clk 0:00:55.6]} 41. hxg5
{[%clk 0:00:54.2]} 41... Kf8 {[%clk 0:00:56.6]} 42. Kf5 {[%clk 0:00:55.5]} 42...
Bh8 {[%clk 0:00:57.5]} 43. Bg8 {[%clk 0:00:56.4]} 43... Bg7 {[%clk 0:00:58.9]}
44. g6 {[%clk 0:00:58.3]} 44... Kxg8 {[%clk 0:00:59.7]} 45. Kg5 {[%clk
0:01:00.2]} 45... Ba1 {[%clk 0:00:59.4]} 46. Kf5 {[%clk 0:01:02.1]} 46... Kf8
{[%clk 0:00:59.8]} 47. g7+ {[%clk 0:01:03.4]} 47... Kxg7 {[%clk 0:01:00.7]}
1/2-1/2

[Event "*** Titled Tuesday 3|2 Blitz"]
[Site "Chess.com"]
[Date "2016.10.04"]
[Round "4"]
[White "APL2001"]
[Black "GMHess"]
[Result "1/2-1/2"]
[WhiteElo "2432"]
[BlackElo "2589"]
[TimeControl "180+2"]
[EndTime "11:48:47 PDT"]
[Termination "Game drawn by agreement"]

1. e4 {[%clk 0:03:01.9]} 1... e5 {[%clk 0:02:56.4]} 2. Nf3 {[%clk 0:03:02.2]}
2... Nc6 {[%clk 0:02:54.5]} 3. Bb5 {[%clk 0:03:02.8]} 3... Nf6 {[%clk
0:02:51.2]} 4. O-O {[%clk 0:03:02.8]} 4... Nxe4 {[%clk 0:02:51.5]} 5. d4 {[%clk
0:03:03.9]} 5... Nd6 {[%clk 0:02:45.1]} 6. dxe5 {[%clk 0:03:05.1]} 6... Nxb5
{[%clk 0:02:45.8]} 7. a4 {[%clk 0:03:06.7]} 7... Nbd4 {[%clk 0:02:43.2]} 8. Nxd4
{[%clk 0:03:06.6]} 8... d5 {[%clk 0:02:41.3]} 9. exd6 {[%clk 0:03:02.7]} 9...
Nxd4 {[%clk 0:02:36.5]} 10. Qxd4 {[%clk 0:03:02.4]} 10... Qxd6 {[%clk
0:02:37.8]} 11. Qxd6 {[%clk 0:02:59.1]} 11... Bxd6 {[%clk 0:02:38.1]} 12. Nc3
{[%clk 0:02:57.8]} 12... c6 {[%clk 0:02:14.9]} 13. Re1+ {[%clk 0:02:55.7]} 13...
Kf8 {[%clk 0:02:13.5]} 14. Ne4 {[%clk 0:02:55.9]} 14... Be7 {[%clk 0:02:13.8]}
15. Bf4 {[%clk 0:02:56.3]} 15... Bf5 {[%clk 0:01:54.2]} 16. c3 {[%clk
0:02:56.5]} 16... Rd8 {[%clk 0:01:42]} 17. Ng3 {[%clk 0:02:56.6]} 17... Bc2
{[%clk 0:01:36.1]} 18. Re2 {[%clk 0:02:57.8]} 18... Bd1 {[%clk 0:01:26.2]} 19.
Re1 {[%clk 0:02:51.7]} 19... Bb3 {[%clk 0:01:20.8]} 20. Nf5 {[%clk 0:02:50.7]}
20... Bc5 {[%clk 0:01:20.5]} 21. Be5 {[%clk 0:02:22.1]} 21... f6 {[%clk
0:00:44.3]} 22. Bd4 {[%clk 0:02:17.6]} 22... Bxd4 {[%clk 0:00:45.4]} 23. Nxd4
{[%clk 0:02:18.3]} 23... Bd5 {[%clk 0:00:40.8]} 24. Ne6+ {[%clk 0:02:16.2]}
24... Bxe6 {[%clk 0:00:41.1]} 25. Rxe6 {[%clk 0:02:17.9]} 25... Kf7 {[%clk
0:00:38.9]} 26. Re2 {[%clk 0:02:18.5]} 26... Rhe8 {[%clk 0:00:37.7]} 27. Kf1
{[%clk 0:02:19.2]} 27... Rxe2 {[%clk 0:00:37.2]} 28. Kxe2 {[%clk 0:02:20.5]}
28... Ke6 {[%clk 0:00:38]} 29. Ke3 {[%clk 0:02:11.4]} 29... h5 {[%clk
0:00:35.1]} 30. Re1 {[%clk 0:02:08.2]} 30... Kf5 {[%clk 0:00:35.1]} 31. Kf3
{[%clk 0:02:08.3]} 31... Rd3+ {[%clk 0:00:28.2]} 32. Re3 {[%clk 0:02:06.3]}
32... Rxe3+ {[%clk 0:00:22.9]} 33. Kxe3 {[%clk 0:02:07.5]} 33... Ke5 {[%clk
0:00:22.9]} 34. f4+ {[%clk 0:02:03.9]} 34... Kf5 {[%clk 0:00:22]} 35. Kf3 {[%clk
0:02:03.1]} 35... g5 {[%clk 0:00:20.4]} 36. g3 {[%clk 0:01:55.2]} 36... a5
{[%clk 0:00:14.2]} 37. b4 {[%clk 0:01:33.6]} 37... b6 {[%clk 0:00:15.5]} 38.
bxa5 {[%clk 0:01:30.2]} 38... bxa5 {[%clk 0:00:17.4]} 39. c4 {[%clk 0:01:25.2]}
39... gxf4 {[%clk 0:00:07.1]} 40. gxf4 {[%clk 0:01:26]} 40... c5 {[%clk
0:00:06.9]} 41. h4 {[%clk 0:01:25.3]} 41... Ke6 {[%clk 0:00:07.4]} 42. Ke4
{[%clk 0:01:26.6]} 42... f5+ {[%clk 0:00:07.6]} 43. Ke3 {[%clk 0:01:26.9]} 43...
Kd6 {[%clk 0:00:08.9]} 1/2-1/2